Cogmind - Beta 13 @@@ ROGUE MODE // 2024.04.21 @ 22:18:54 Player: Aaron Result: Destroyed by S-10 Pest with Light Assault Rifle Performance ------------- Evolutions (0) 0 Regions Visited (1) 200 Robots Destroyed (10) 50 Value Destroyed (175) 175 Prototype IDs (0) 0 Alien Tech Used (0) 0 Bonus (0) 0 TOTAL SCORE: 425 Bonus ------- None Cogmind --------- Core Integrity 0/250 Matter 246/300 Energy 93/250 System Corruption 0% Temperature Warning (375) Movement Rolling (80) Location -10/Materials Parts ------- > --- POWER (1) -------- Ion Engine > --- PROPULSION (2) --- Wheel Wheel > --- UTILITY (2) ------ (None) > --- WEAPON (2) ------- Small Laser Small Laser > --- INVENTORY (5) ---- Datajack Peak State ------------ > --- POWER ------------ Ion Engine > --- PROPULSION ------- Wheel Wheel > --- UTILITY ---------- Improved Terrain Scanner Seismic Detector > --- WEAPON ----------- Medium Laser Medium Laser > --- INVENTORY -------- Ion Engine EM Pulse Gun [Rating: 9] Favorites ----------- Power Ion Engine Engine Ion Engine Propulsion Wheel Wheel Wheel Utility Improved Terrain Scanner Device Improved Terrain Scanner Storage Small Storage Unit Weapon Medium Laser Energy Gun Medium Laser Build | -11 -10 ------- Run | Yrd Mat Slots Evolved . | . . Power . | . . Propulsion . | . . Utility . | . . Weapon . | . . Parts Attached 14 | 9 5 Power 2 | 1 1 Engine 2 | 1 1 Core . | . . Reactor . | . . Propulsion 4 | 2 2 Treads . | . . Leg . | . . Wheel 4 | 2 2 Hover . | . . Flight . | . . Utility 3 | 3 . Device 2 | 2 . Storage 1 | 1 . Processor . | . . Hackware . | . . Protection . | . . Artifact . | . . Weapon 5 | 3 2 Energy Gun 5 | 3 2 Energy Cannon . | . . Ballistic Gun . | . . Ballistic Cannon . | . . Launcher . | . . Special Weapon . | . . Impact Weapon . | . . Slashing Weapon . | . . Piercing Weapon . | . . Special Melee Weapon . | . . Unidentified Prototypes . | . . Parts Lost 7 | . 7 Power 1 | . 1 Propulsion 2 | . 2 Utility 2 | . 2 Weapon 2 | . 2 Highest Loss Streak 7 | . 7 To Critical Strikes . | . . Average Slot Usage (%) 92 | . 92 Engine 14 | . 14 Wheel 26 | . 26 Device 24 | . 24 Energy Gun 25 | . 25 Naked Turns . | . . Heaviest Build 15 | 15 11 Greatest Support 20 | 20 20 Greatest Overweight (x) 1 | . 1 Average Overweight (x) . | . . Largest Inventory Capacity 8 | 8 5 Average Capacity 5 | 7 5 Most Carried 4 | 4 4 Average Carried 2 | 1 3 Final Capacity 5 | 5 5 Final Carried 4 | 4 1 Class Distribution -------------------- 100% | Mutant Dominant Class ---------------- Mutant | -10/Materials Resources | -11 -10 ----------- Run | Yrd Mat Matter Collected 290 | 290 . Remotely . | . . Salvage Created 337 | 166 171 Parts 25 | 17 8 Haulers Intercepted . | . . Recyclers Shooed . | . . Parts Field Recycled . | . . Retrieved Matter . | . . Parts Self-Destructed . | . . Prevented . | . . Kills | -11 -10 ------- Run | Yrd Mat Combat Hostiles Destroyed 4 | . 4 Guns 4 | . 4 Classes Destroyed 5 | 2 3 Tunneler 4 | 4 . Recycler 1 | 1 . Watcher 1 | . 1 Swarmer 1 | . 1 Grunt 3 | . 3 Best Kill Streak 5 | 5 3 Combat Bots Only 3 | . 3 Max Kills in Single Turn 2 | 1 2 Gunslinging 1 | . 1 Exploded . | . . Melee . | . . Uniques/NPCs Destroyed . | . . Combat | -11 -10 -------- Run | Yrd Mat Hostile Shots Fired 87 | . 87 Missed 14 | . 14 Damage Taken 736 | . 736 Core 251 | . 251 Absorbed by Shields . | . . Core Remaining (%) 100 | 100 . Volleys Fired 28 | 9 19 Largest 2 | 2 2 Hottest 100 | 100 100 Shots Fired 51 | 18 33 Gun 51 | 18 33 Cannon . | . . Launcher . | . . Special . | . . Kinetic . | . . Thermal 47 | 14 33 Explosive . | . . Electromagnetic 4 | 4 . Robot Hit Streak 7 | 5 7 Robot Miss Streak 2 | 2 2 Penetration Max . | . . Secondary Targets 2 | . 2 Max Gunslinging Chain 1 | . 1 Shots Hit Robots 33 | 10 23 Core Hits 13 | 6 7 Critical Kills . | . . Critical Parts Destroyed . | . . Critical Strikes 2 | . 2 Burn 2 | . 2 Melee Attacks . | . . Impact . | . . Slashing . | . . Piercing . | . . Sneak Attacks . | . . Combat Hostiles . | . . Follow-up Attacks . | . . Damage Inflicted 435 | 140 295 Guns 435 | 140 295 Cannons . | . . Explosions . | . . Melee . | . . Ramming . | . . Kinetic . | . . Thermal 395 | 100 295 Explosive . | . . Electromagnetic 40 | 40 . Impact . | . . Slashing . | . . Piercing . | . . Highest Corruption . | . . Average Corruption . | . . Corruption Purged . | . . Corruption Blocked . | . . Overload Shots . | . . Overflow Damage . | . . Projectiles . | . . Explosions . | . . Melee . | . . Knockbacks . | . . Impact . | . . Kinetic . | . . Secondary . | . . Self-Inflicted Damage . | . . Shots . | . . Rammed . | . . Targets Rammed . | . . Kicked . | . . Crushed . | . . Highest Temperature 483 | 156 483 Average Temperature 215 | 68 307 Received Heat Transfer 210 | . 210 Effects 3 | . 3 Shutdowns 2 | . 2 Matter Decay 1 | . 1 Siege Activations . | . . Robots Corrupted . | . . Combat Hostiles . | . . Parts Fried . | . . Impact Corruptions . | . . Robots Melted . | . . Combat Hostiles . | . . Parts Melted . | . . Heat Transferred 1260 | 296 964 Parts Sabotaged . | . . Parts Stolen . | . . Parts Stripped . | . . Power Chain Reactions . | . . Alert | -11 -10 ------- Run | Yrd Mat Peak Influence 113 | 25 113 Initial 16 | . 16 Average 29 | 9 39 Maximum Alert Level . | . . Low Security (%) 100 | 100 100 Level 1 . | . . Level 2 . | . . Level 3 . | . . Level 4 . | . . Level 5 . | . . High Security . | . . Max Security . | . . Squads Dispatched . | . . Investigation . | . . Extermination . | . . Reinforcement . | . . Assault . | . . Garrison . | . . Intercept . | . . Searches Triggered . | . . Construction Impeded . | . . Haulers Reinforced . | . . Active Scanning Responses . | . . Cargo Convoy Interrupts . | . . Stealth | -11 -10 --------- Run | Yrd Mat Distress Signals 1 | . 1 Communications Jammed . | . . Distress Signals . | . . Times Spotted 8 | . 8 Peak Tracking Total 8 | . 8 Tactical Retreats 1 | . 1 Traps | -11 -10 ------- Run | Yrd Mat Traps Triggered . | . . Indirectly . | . . Trap Hack Attempts . | . . Triggered . | . . Disarmed . | . . Reprogrammed . | . . Reused . | . . Traps Extracted . | . . Installed . | . . Triggered . | . . Machines | -11 -10 ---------- Run | Yrd Mat Machines Disabled . | . . Max in Single Turn . | . . Machines Repaired . | . . Machines Dismantled . | . . Machines Sabotaged . | . . Overloaded Fab Kills . | . . Hacking | -11 -10 --------- Run | Yrd Mat Machines Accessed 2 | . 2 Terminals 1 | . 1 Fabricators . | . . Repair Stations . | . . Recycling Units 1 | . 1 Scanalyzers . | . . Garrison Access . | . . Total Hacks 9 | . 9 Successful 3 | . 3 Failed 6 | . 6 Catastrophic 1 | . 1 Database Lockouts . | . . Manual . | . . Terminals 5 | . 5 Fabricators . | . . Repair Stations . | . . Recycling Units 4 | . 4 Scanalyzers . | . . Garrison Access . | . . Terminal Hacks 2 | . 2 Emergency Access Points 1 | . 1 Zone Layout 1 | . 1 Fabricator Hacks . | . . Repair Station Hacks . | . . Recycling Unit Hacks 1 | . 1 Retrieve Components 1 | . 1 Scanalyzer . | . . Garrison Access Hacks . | . . Unauthorized Hacks . | . . Terminals . | . . Fabricators . | . . Repair Stations . | . . Recycling Units . | . . Scanalyzers . | . . Garrison Access . | . . Data Cores Recovered . | . . Used . | . . Hacking Detections 2 | . 2 Full Trace Events 1 | . 1 Feedback Events . | . . Feedback Blocked . | . . Robot Schematics Acquired . | . . Robots Built . | . . Authchips . | . . Time . | . . Total Robot Build Rating . | . . Part Schematics Acquired . | . . Parts Built . | . . Authchips . | . . Time . | . . Total Part Build Rating . | . . Parts Repaired . | . . Time . | . . Parts Recycled . | . . Recycled Matter . | . . Retrieved Matter . | . . Retrieved Components 3 | . 3 Parts Scanalyzed . | . . Part Schematics Acquired . | . . Parts Damaged . | . . Bothacking | -11 -10 ------------ Run | Yrd Mat Used RIF Installer . | . . Robots Hacked . | . . Non-combat . | . . Combat . | . . Robot Hacks Applied . | . . Relay Couplers Released . | . . Fabnet Peak Effective % . | . . Robots Rewired . | . . Allies Hacked . | . . Hacks Repelled . | . . Allies | -11 -10 -------- Run | Yrd Mat Total Allies . | . . Largest Group . | . . Highest-Rated Group . | . . Highest-Rated Ally . | . . Total Orders . | . . Ally Attacks . | . . Total Damage . | . . Kills . | . . Allies Corrupted . | . . Allies Melted . | . . Intel | -11 -10 ------- Run | Yrd Mat Robot Analysis Total . | . . Derelict Logs Recovered . | . . Drone Launches . | . . Drone Recoveries . | . . Exploration | -11 -10 ------------- Run | Yrd Mat Turns Passed 271 | 96 175 Spaces Moved 198 | 56 142 Core 3 | 2 1 Treads . | . . Legs . | . . Wheels 195 | 54 141 Hover . | . . Flight . | . . Fastest Speed 50 | 50 80 Average Speed 79 | 78 80 Slowest Speed 100 | 80 100 Overloaded Moves . | . . Propulsion Burnouts . | . . Robots Hopped . | . . Cave-ins Triggered . | . . Exploration Rate (%) 13 | 4 22 Regions Visited 1 Branch Regions . Pre-discovered Areas . | . . Known Exits Taken . | . . Unknown Exits Taken 1 | 1 . Scrap Searched . | . . Spaces Dug . | . . Terrain Destroyed . | . . Melee . | . . Projectile . | . . AOE . | . . Terrain Rammed . | . . Walls Destroyed . | . . Machines Disabled . | . . Actions | -11 -10 --------- Run | Yrd Mat Total 257 | 85 172 Wait 9 | 7 2 Move 197 | 55 142 Hop . | . . Pick Up 6 | 4 2 Fast Attach 10 | 8 2 Attach 3 | . 3 Detach . | . . Swap 1 | 1 . Drop 3 | 1 2 Fire 28 | 9 19 Melee . | . . Ram . | . . Kick . | . . Crush . | . . Escape Stasis . | . . Rewire . | . . Trap . | . . Miscellaneous . | . . Route ------- -11/Scrapyard -10/Materials (discovered 2 exits: [Mat] / [*Min]) History --------- Turn | Location | Event 13 | -11/Scrapyard | Discovered new exit (range 16) 97 | -11/Scrapyard | Entered Materials 192 | -10/Materials | Discovered new exit (range 11) 205 | -10/Materials | Discovered new exit (range 9) 253 | -10/Materials | Core integrity fell below 50% 261 | -10/Materials | Core integrity fell below 20% 272 | -10/Materials | Destroyed by S-10 Pest with Light Assault Rifle Last Messages --------------- G-47 Trooper heat spikes uncontrollably. G-47 Trooper overheating. G-47 Trooper heat damages core (-10). G-47 Trooper overheating. Overheating: Matter decay (-39). Med. Laser destroyed. Seismic Detector destroyed. Power failure, Ion Engine shutdown. Wheel destroyed. Med. Laser destroyed. Power failure, Ion Engine shutdown. Ion Engine destroyed. Acquired Sml. Laser. Processing Tank disabled. G-47 Trooper destroyed. Imp. Terrain Scanner destroyed. R-06 Scavenger collects Lgt. Nuclear Core. G-34 Mercenary destroyed. Switching to secondary target: G-34 Mercenary. G-34 Mercenary destroyed. Map ----- +----------------------------------------------------+ | ?????????????????????????????????????????????????? | | ????????????????????????????????"????????????????? | | ?????????????????????????????????????????????????? | | ?????????????????????????????????????????????????? | | ??????????????????????????????????#??????????????? | | ?????????????????????????????????????????????????? | | ???????#?????? ??????????????????????????????????? | | ????????????????????? ???????????????????????????? | | ???????????????????????????????????????????"?????? | | ??????????????????????????"??????????????????????? | | ????????????????#???? ??????????????????????????? | | ?????????????#############+###?????#######???????? | | ?????????????# ##### ##/?????? | | ???????????#?# ????? | | ????#?######## !% < ????? | | ??????# ! % #??? | | ??????# #####" "## #??? | | ??????# ##???#" " "## #??? | | ??????######### """""%s #????#"""""""## #??? | | ??????????????# """""= s #?#??########## #??? | | ??????????????# "" "" #?????????##### #??? | | ????#???####### #?????????## #??? | | ????# """"""" # #?????????# #??? | | ????# """"""" # #??#??????# ??? | | ????# """"""" # ! #?????????# ??? | | ???## """"""" + [@ r#???????#?# ??? | | ??#?# """"""" # ^ %##????????## ??? | | ?#??# ### ^ r [#????########## ??? | | ??#?# #?# #????# ??? | | ????# [ #?# !! #?#### ??? | | ????####+######## ! %###T## ??? | | ???????# #??# ###+######??? | | ??????## #??# # ??? | | ??#????#+#??# ################### # ??? | | ?#?????####?# ########?????????## # ??? | | ????????????# # ####???????# # ??? | | ??#?????#???# # ##??#??????# # ??? | | ???########?# # ]] ! #??????????# # ??? | | ???# #?# +[]] #?????????? # ??? | | ???# #?# # ] #???#??????# # ??? | | ???#### ##### # #??#???????# < ########+#??? | | ????# ########??#???????# #??????# #??? | | ????# ## #????#?????????#####??????# ??? | | ????###+####+######???????????????????????###+#??? | | ????# # #???????????????????????# ??? | | ????# ! # [ #???????????#???????????# ??? | | ????# # "" ! #??????????????????????????????? | | ????# """" # "Y #??????????????????????????????? | | ????# """" # "" #??????????????????????????????? | | ????# """" # #?#????????????????????????????? | +----------------------------------------------------+ Best States ------------- Heat Dissipation 25 Energy Generation 10 Energy Capacity 250 Matter Stores 300 Matter Capacity 300 Sight Range 16 Terrain Scan Range 16 Terrain Scan Density 10 Evasion (%) 44 Item Schematics ----------------- None Robot Schematics ------------------ None Fabricated ------------ Nothing Alien Tech Used ----------------- None Achievements -------------- None Challenges ------------ None Game ------ Seed MappingGrenadeGravjet Manual? 0 Play Time 00:09:11 Cumulative 17.5 hours Start 2024.04.21 @ 22:10:46 End 2024.04.21 @ 22:18:54 Sessions 1 Manual Loads 0 Difficulty Rogue Special Mode None Game No. 11 Rogue 11 Adventurer 0 Explorer 0 Win Type - Total 0 Types 0/0/0/0/0/0/0/0/0 Lore% 13 Gallery% 20 Achievement% 19 Wizard Run 0 Options --------- Layout 1 ASCII 0 Keyboard 0 Movement Mouse Keybinds 0 Fullscreen 2 Font 32/SmallcapsGlow Map View 50x35 Zoom Use 0% Tactical HUD 0 Map Filters NONE Filters NONE Steam 1 RUN: b19eecc5-febd-4d51-9fcf-f9c6dd071afe